[Event "Mukachevo IM October 2019"]
[Site "Mukachevo"]
[Date "2019.10.02"]
[Round "2.3"]
[White "Petrovskiy, Vadim"]
[Black "Oros, Robert"]
[Result "1-0"]
[ECO "C50"]
[WhiteElo "2197"]
[BlackElo "2284"]
[Annotator "ChessBase"]
[PlyCount "58"]
[EventDate "2019.10.01"]
[EventType "tourn"]
[EventCountry "UKR"]
[SourceTitle "playchess.com"]
[Source "ChessBase"]
[SourceQuality "1"]
[TimeControl "40/5400+30:900+30"]

1. e4 {[%emt 0:00:00]} e5 {[%emt 0:00:55]} 2. Nf3 {[%emt 0:00:00]} Nc6 {[%emt 0:00:12]} 3. Bc4 {[%emt 0:00:48]} Be7 {[%emt 0:01:06]} 4. d4 {[%emt 0:02:05]} d6 {[%emt 0:00:27]} 5. O-O {[%emt 0:02:02]} Nf6 {[%emt 0:01:07]} 6. Nc3 {[%emt 0:02:02]} Bg4 {[%emt 0:03:11]} 7. d5 {[%emt 0:15:02]} Nd4 {[%emt 0:01:16]} 8. Be3 {[%emt 0:01:07]} Nxf3+ {[%emt 0:00:41]} 9. gxf3 {[%emt 0:00:03]} Bh3 {[%emt 0:01:08]} 10. Re1 {[%emt 0:00:07]} Nh5 {[%emt 0:01:08]} 11. Qd2 {[%emt 0:02:59]} g5 {[%emt 0:07:30]} 12. Ne2 {[%emt 0:06:15]} Nf4 {[%emt 0:00:44]} 13. Ng3 {[%emt 0:01:16]} Qc8 {[%emt 0:05:36]} 14. Bd3 {[%emt 0:12:52]} O-O {[%emt 0:08:03]} 15. Nf5 {[%emt 0:07:55]} Bxf5 {[%emt 0:02:44]} 16. exf5 {[%emt 0:00:13]} f6 {[%emt 0:09:50]} 17. Be4 {[%emt 0:06:40]} Rf7 {[%emt 0:04:30]} 18. Kh1 {[%emt 0:04:01]} Rg7 {[%emt 0:01:26]} 19. c4 {[%emt 0:03:03]} c5 {[%emt 0:03:39]} 20. dxc6 {[%emt 0:02:11]} bxc6 {[%emt 0:00:08]} 21. b4 {[%emt 0:00:44]} a6 {[%emt 0:06:21]} 22. Rec1 {[%emt 0:01:04]} Rb8 {[%emt 0:03:11]} 23. b5 {[%emt 0:01:39]} c5 {[%emt 0:00:26]} 24. Rab1 {[%emt 0:04:23]} axb5 {[%emt 0:01:32]} 25. cxb5 {[%emt 0:00:16]} d5 {[%emt 0:00:29]} 26. Bxd5+ {[%emt 0:00:57]} Nxd5 {[%emt 0:00:04]} 27. Qxd5+ {[%emt 0:00:08]} Kh8 {[%emt 0:00:02]} 28. Qe4 {[%emt 0:04:16]} Bf8 {[%emt 0:01:17]} 29. a4 {[%emt 0:00:41]} Rgb7 {[%emt 0:01:18]} 1-0

[Event "Mukachevo IM October 2019"]
[Site "Mukachevo"]
[Date "2019.10.02"]
[Round "2.5"]
[White "Boricsev, Oleg"]
[Black "Ganze, Laszlo"]
[Result "1-0"]
[ECO "B20"]
[WhiteElo "2241"]
[BlackElo "1942"]
[Annotator "NA"]
[PlyCount "97"]
[EventDate "2019.10.01"]
[EventType "tourn"]
[EventCountry "UKR"]
[SourceTitle "playchess.com"]
[Source "ChessBase"]
[SourceQuality "1"]
[TimeControl "40/5400+30:900+30"]

1. e4 {[%emt 0:01:11]} c5 {[%emt 0:00:00]} 2. b4 {[%emt 0:00:55]} cxb4 {[%emt 0:02:53]} 3. d4 {[%emt 0:00:46]} Nf6 {[%emt 0:03:36]} 4. e5 {[%emt 0:00:53]} Nd5 {[%emt 0:01:35]} 5. a3 {[%emt 0:00:45]} Qc7 {[%emt 0:06:13]} 6. axb4 {[%emt 0:03:15]} Nc3 {[%emt 0:02:29]} 7. Qd3 {[%emt 0:10:16]} Nxb1 {[%emt 0:01:31]} 8. Rxb1 {[%emt 0:00:13]} d5 {[%emt 0:08:13]} 9. exd6 {[%emt 0:01:59]} Qxd6 {[%emt 0:00:45]} 10. Nf3 {[%emt 0:01:05]} g6 {[%emt 0:01:14]} 11. Qe4 {[%emt 0:11:47]} Bg7 {[%emt 0:01:50]} 12. Bb5+ {[%emt 0:01:35]} Nd7 {[%emt 0:11:00]} 13. Bf4 {[%emt 0:02:52]} Qb6 {[%emt 0:01:26]} 14. c4 {[%emt 0:02:10]} O-O {[%emt 0:01:57]} 15. Qxe7 {[%emt 0:03:49]} Nf6 {[%emt 0:04:23]} 16. Bc7 {[%emt 0:08:36]} Qe6+ {[%emt 0:01:36]} 17. Qxe6 {[%emt 0:00:05]} Bxe6 {[%emt 0:00:16]} 18. d5 {[%emt 0:01:23]} Bf5 {[%emt 0:00:33]} 19. Rd1 {[%emt 0:01:42]} a6 {[%emt 0:03:36]} 20. Ba4 {[%emt 0:04:05]} Ne4 {[%emt 0:02:35]} 21. Nd4 {[%emt 0:12:46]} Nc3 {[%emt 0:10:31]} 22. Nxf5 {[%emt 0:00:17]} gxf5 {[%emt 0:00:09]} 23. Bd7 {[%emt 0:01:11]} Nxd1 {[%emt 0:02:35]} 24. Kxd1 {[%emt 0:00:08]} Bc3 {[%emt 0:00:38]} 25. Ba5 {[%emt 0:03:05]} b6 {[%emt 0:02:50]} 26. Bxb6 {[%emt 0:00:13]} Bxb4 {[%emt 0:00:16]} 27. Kc2 {[%emt 0:01:21]} Rab8 {[%emt 0:02:55]} 28. c5 {[%emt 0:03:34]} Rxb6 {[%emt 0:04:55]} 29. cxb6 {[%emt 0:04:05]} Rb8 {[%emt 0:00:10]} 30. Rb1 {[%emt 0:04:49]} Rxb6 {[%emt 0:00:47]} 31. Bxf5 {[%emt 0:00:36]} a5 {[%emt 0:00:11]} 32. Bd7 {[%emt 0:01:38]} Rd6 {[%emt 0:01:00]} 33. Bc6 {[%emt 0:00:19]} Rf6 {[%emt 0:01:03]} 34. f3 {[%emt 0:02:50]} Rg6 {[%emt 0:01:41]} 35. g3 {[%emt 0:01:16]} Kf8 {[%emt 0:01:12]} 36. Kd3 {[%emt 0:01:01]} Ke7 {[%emt 0:00:41]} 37. Kc4 {[%emt 0:01:08]} Kd6 {[%emt 0:00:57]} 38. Rb2 {[%emt 0:00:39]} Rh6 {[%emt 0:01:50]} 39. Re2 {[%emt 0:02:13]} Rh5 {[%emt 0:01:27]} 40. f4 {[%emt 0:00:00]} Rh6 {[%emt 0:00:00]} 41. Be8 {[%emt 0:02:45]} Rf6 {[%emt 0:03:32]} 42. Re5 {[%emt 0:01:43]} Rh6 {[%emt 0:01:51]} 43. Bxf7 {[%emt 0:02:42]} Rxh2 {[%emt 0:00:29]} 44. Re6+ {[%emt 0:00:20]} Kd7 {[%emt 0:00:30]} 45. Be8+ {[%emt 0:00:45]} Kd8 {[%emt 0:00:12]} 46. Ba4 {[%emt 0:00:36]} Rg2 {[%emt 0:01:13]} 47. d6 {[%emt 0:00:26]} Kc8 {[%emt 0:03:07]} 48. Re8+ {[%emt 0:00:19]} Kb7 {[%emt 0:00:07]} 49. d7 {[%emt 0:00:16]} 1-0

[Event "Mukachevo IM October 2019"]
[Site "Mukachevo"]
[Date "2019.10.02"]
[Round "3.1"]
[White "Ganze, Laszlo"]
[Black "Shkuran, Danylo"]
[Result "0-1"]
[ECO "E91"]
[WhiteElo "1942"]
[BlackElo "2343"]
[Annotator "NA"]
[PlyCount "68"]
[EventDate "2019.10.01"]
[EventType "tourn"]
[EventCountry "UKR"]
[SourceTitle "playchess.com"]
[Source "ChessBase"]
[SourceQuality "1"]
[TimeControl "40/5400+30:900+30"]

1. d4 {[%emt 0:00:06]} Nf6 {[%emt 0:07:32]} 2. Nf3 {[%emt 0:03:28]} g6 {[%emt 0:01:30]} 3. c4 {[%emt 0:00:21]} Bg7 {[%emt 0:00:13]} 4. Nc3 {[%emt 0:00:14]} O-O {[%emt 0:00:05]} 5. e4 {[%emt 0:00:46]} d6 {[%emt 0:00:05]} 6. Be2 {[%emt 0:00:48]} Nbd7 {[%emt 0:00:14]} 7. O-O {[%emt 0:01:22]} e5 {[%emt 0:03:51]} 8. d5 {[%emt 0:06:09]} Nc5 {[%emt 0:00:26]} 9. Nd2 {[%emt 0:01:51]} a5 {[%emt 0:00:15]} 10. b3 {[%emt 0:02:49]} Ne8 {[%emt 0:09:28]} 11. f3 {[%emt 0:02:55]} f5 {[%emt 0:00:30]} 12. Qc2 {[%emt 0:02:13]} Nf6 {[%emt 0:00:57]} 13. Rf2 {[%emt 0:04:39]} f4 {[%emt 0:06:01]} 14. Ba3 {[%emt 0:00:33]} h5 {[%emt 0:00:37]} 15. Kh1 {[%emt 0:02:55]} g5 {[%emt 0:00:39]} 16. Bxc5 {[%emt 0:05:30]} dxc5 {[%emt 0:01:21]} 17. g3 {[%emt 0:05:10]} fxg3 {[%emt 0:06:18]} 18. hxg3 {[%emt 0:00:41]} Ng4 {[%emt 0:00:07]} 19. Rg2 {[%emt 0:07:24]} Ne3 {[%emt 0:00:17]} 20. Qd3 {[%emt 0:00:10]} Nxg2 {[%emt 0:00:05]} 21. Kxg2 {[%emt 0:00:06]} Ra6 {[%emt 0:00:35]} 22. Rh1 {[%emt 0:03:19]} Rh6 {[%emt 0:00:34]} 23. Nd1 {[%emt 0:02:04]} g4 {[%emt 0:00:51]} 24. Ne3 {[%emt 0:01:42]} Qg5 {[%emt 0:05:13]} 25. fxg4 {[%emt 0:06:04]} hxg4 {[%emt 0:03:14]} 26. Rxh6 {[%emt 0:01:34]} Bxh6 {[%emt 0:00:07]} 27. Ndf1 {[%emt 0:01:38]} Qh5 {[%emt 0:02:41]} 28. Kg1 {[%emt 0:00:25]} Rf6 {[%emt 0:05:18]} 29. Ng2 {[%emt 0:07:33]} Bg5 {[%emt 0:03:29]} 30. Nh4 {[%emt 0:02:43]} Bxh4 {[%emt 0:00:15]} 31. gxh4 {[%emt 0:00:03]} Qxh4 {[%emt 0:00:08]} 32. Qe3 {[%emt 0:02:42]} b6 {[%emt 0:01:14]} 33. Kg2 {[%emt 0:02:27]} Qh3+ {[%emt 0:00:53]} 34. Kg1 {[%emt 0:01:56]} Rxf1+ {[%emt 0:00:23]} 0-1

[Event "Mukachevo IM October 2019"]
[Site "Mukachevo"]
[Date "2019.10.02"]
[Round "3.2"]
[White "Tiba, Vladyslav"]
[Black "Boricsev, Oleg"]
[Result "1-0"]
[ECO "B15"]
[WhiteElo "2360"]
[BlackElo "2241"]
[Annotator "NA"]
[PlyCount "109"]
[EventDate "2019.10.01"]
[EventType "tourn"]
[EventCountry "UKR"]
[SourceTitle "playchess.com"]
[Source "ChessBase"]
[SourceQuality "1"]
[TimeControl "40/5400+30:900+30"]

1. e4 {[%emt 0:00:00]} c6 {[%emt 0:01:26]} 2. d4 {[%emt 0:00:00]} d5 {[%emt 0:00:51]} 3. Nc3 {[%emt 0:00:00]} dxe4 {[%emt 0:00:09]} 4. Nxe4 {[%emt 0:00:00]} Nf6 {[%emt 0:00:04]} 5. Nxf6+ {[%emt 0:00:54]} exf6 {[%emt 0:00:07]} 6. c3 {[%emt 0:00:16]} g6 {[%emt 0:01:32]} 7. Bd3 {[%emt 0:05:40]} Bg7 {[%emt 0:01:25]} 8. Ne2 {[%emt 0:01:29]} Nd7 {[%emt 0:02:04]} 9. Be3 {[%emt 0:01:41]} f5 {[%emt 0:03:39]} 10. O-O {[%emt 0:11:01]} O-O {[%emt 0:01:18]} 11. Nf4 {[%emt 0:07:42]} Nf6 {[%emt 0:04:27]} 12. Bc4 {[%emt 0:03:34]} b5 {[%emt 0:01:06]} 13. Bb3 {[%emt 0:01:10]} Bb7 {[%emt 0:02:11]} 14. Nd3 {[%emt 0:01:55]} Nd7 {[%emt 0:05:54]} 15. Re1 {[%emt 0:10:58]} Re8 {[%emt 0:04:27]} 16. Qf3 {[%emt 0:02:26]} Qc8 {[%emt 0:06:22]} 17. Bg5 {[%emt 0:03:31]} Rxe1+ {[%emt 0:06:32]} 18. Rxe1 {[%emt 0:00:24]} c5 {[%emt 0:00:34]} 19. Bd5 {[%emt 0:00:39]} Bxd5 {[%emt 0:04:12]} 20. Qxd5 {[%emt 0:00:05]} Nb6 {[%emt 0:01:59]} 21. Qxc5 {[%emt 0:00:56]} Qxc5 {[%emt 0:00:06]} 22. dxc5 {[%emt 0:05:06]} Nd5 {[%emt 0:03:37]} 23. Rd1 {[%emt 0:06:53]} h6 {[%emt 0:02:48]} 24. Bf4 {[%emt 0:00:43]} Nxf4 {[%emt 0:04:10]} 25. Nxf4 {[%emt 0:00:06]} Rc8 {[%emt 0:00:43]} 26. b4 {[%emt 0:01:56]} Kf8 {[%emt 0:03:57]} 27. Nd5 {[%emt 0:04:54]} g5 {[%emt 0:03:38]} 28. g3 {[%emt 0:00:37]} g4 {[%emt 0:00:26]} 29. Rd3 {[%emt 0:00:38]} Rd8 {[%emt 0:02:28]} 30. Rd1 {[%emt 0:03:46]} h5 {[%emt 0:03:36]} 31. Kf1 {[%emt 0:01:32]} Be5 {[%emt 0:01:47]} 32. Ke2 {[%emt 0:04:17]} f6 {[%emt 0:00:37]} 33. Rd3 {[%emt 0:01:54]} Re8 {[%emt 0:04:10]} 34. Kd2 {[%emt 0:00:40]} a5 {[%emt 0:00:38]} 35. Kc2 {[%emt 0:02:13]} Kf7 {[%emt 0:01:41]} 36. Nb6 {[%emt 0:05:33]} axb4 {[%emt 0:00:48]} 37. cxb4 {[%emt 0:00:05]} f4 {[%emt 0:01:55]} 38. Rd7+ {[%emt 0:05:39]} Kg6 {[%emt 0:01:40]} 39. Nd5 {[%emt 0:00:11]} f3 {[%emt 0:01:12]} 40. c6 {[%emt 0:00:00]} h4 {[%emt 0:00:00]} 41. c7 {[%emt 0:05:00]} Bxc7 {[%emt 0:11:08]} 42. Nxc7 {[%emt 0:00:44]} Re1 {[%emt 0:00:32]} 43. Rd1 {[%emt 0:03:13]} Re2+ {[%emt 0:00:05]} 44. Rd2 {[%emt 0:00:06]} Re1 {[%emt 0:00:05]} 45. Nxb5 {[%emt 0:04:14]} Rh1 {[%emt 0:00:23]} 46. gxh4 {[%emt 0:00:59]} Rxh2 {[%emt 0:00:13]} 47. Kd3 {[%emt 0:03:55]} Rxh4 {[%emt 0:02:41]} 48. Nd4 {[%emt 0:00:31]} f5 {[%emt 0:00:47]} 49. a4 {[%emt 0:00:46]} Rh1 {[%emt 0:00:38]} 50. a5 {[%emt 0:02:59]} Ra1 {[%emt 0:00:10]} 51. Rb2 {[%emt 0:01:27]} Kg5 {[%emt 0:01:55]} 52. b5 {[%emt 0:00:14]} Ra3+ {[%emt 0:01:33]} 53. Kd2 {[%emt 0:01:05]} f4 {[%emt 0:01:16]} 54. b6 {[%emt 0:00:41]} g3 {[%emt 0:00:35]} 55. b7 {[%emt 0:00:43]} 1-0

[Event "Mukachevo IM October 2019"]
[Site "Mukachevo"]
[Date "2019.10.02"]
[Round "3.3"]
[White "Oros, Robert"]
[Black "Sernecki, Franciszek"]
[Result "0-1"]
[ECO "A45"]
[WhiteElo "2284"]
[BlackElo "2276"]
[Annotator "NA"]
[PlyCount "84"]
[EventDate "2019.10.01"]
[EventType "tourn"]
[EventCountry "UKR"]
[SourceTitle "playchess.com"]
[Source "ChessBase"]
[SourceQuality "1"]
[TimeControl "40/5400+30:900+30"]

1. d4 {[%emt 0:04:03]} Nf6 {[%emt 0:00:00]} 2. Bg5 {[%emt 0:00:01]} e6 {[%emt 0:03:13]} 3. e3 {[%emt 0:05:40]} d6 {[%emt 0:07:58]} 4. Nf3 {[%emt 0:01:15]} h6 {[%emt 0:03:44]} 5. Bh4 {[%emt 0:01:16]} g5 {[%emt 0:08:20]} 6. Bg3 {[%emt 0:00:10]} Nh5 {[%emt 0:01:29]} 7. c3 {[%emt 0:02:22]} Bg7 {[%emt 0:04:31]} 8. Bd3 {[%emt 0:06:01]} Nd7 {[%emt 0:06:38]} 9. Nfd2 {[%emt 0:05:02]} Nxg3 {[%emt 0:03:25]} 10. hxg3 {[%emt 0:00:14]} b6 {[%emt 0:11:44]} 11. Be4 {[%emt 0:05:42]} d5 {[%emt 0:01:49]} 12. Bd3 {[%emt 0:01:43]} Bb7 {[%emt 0:02:50]} 13. a4 {[%emt 0:00:26]} a5 {[%emt 0:07:54]} 14. Na3 {[%emt 0:05:17]} Ba6 {[%emt 0:03:00]} 15. Bxa6 {[%emt 0:03:01]} Rxa6 {[%emt 0:00:01]} 16. Qf3 {[%emt 0:03:11]} Qf6 {[%emt 0:05:31]} 17. Qe2 {[%emt 0:00:33]} Ra8 {[%emt 0:00:37]} 18. Nb5 {[%emt 0:01:41]} Rc8 {[%emt 0:03:22]} 19. e4 {[%emt 0:00:49]} O-O {[%emt 0:03:15]} 20. e5 {[%emt 0:01:59]} Qg6 {[%emt 0:02:29]} 21. O-O {[%emt 0:00:57]} c5 {[%emt 0:04:29]} 22. f4 {[%emt 0:01:59]} cxd4 {[%emt 0:02:09]} 23. Nxd4 {[%emt 0:01:08]} Nc5 {[%emt 0:01:48]} 24. Rf3 {[%emt 0:02:25]} f6 {[%emt 0:03:26]} 25. Re1 {[%emt 0:11:55]} fxe5 {[%emt 0:01:13]} 26. fxe5 {[%emt 0:00:13]} Rxf3 {[%emt 0:01:34]} 27. N2xf3 {[%emt 0:00:41]} Qd3 {[%emt 0:01:19]} 28. g4 {[%emt 0:09:44]} Qxe2 {[%emt 0:02:36]} 29. Rxe2 {[%emt 0:00:07]} Kf7 {[%emt 0:00:52]} 30. b3 {[%emt 0:01:47]} Ke7 {[%emt 0:02:23]} 31. b4 {[%emt 0:05:42]} Nxa4 {[%emt 0:00:54]} 32. bxa5 {[%emt 0:00:15]} bxa5 {[%emt 0:00:47]} 33. Ra2 {[%emt 0:00:14]} Rc4 {[%emt 0:00:34]} 34. Ra3 {[%emt 0:01:22]} Nxc3 {[%emt 0:00:33]} 35. Rxa5 {[%emt 0:00:07]} Rc7 {[%emt 0:00:29]} 36. Ra6 {[%emt 0:00:11]} Rb7 {[%emt 0:00:31]} 37. Nxe6 {[%emt 0:00:52]} Bh8 {[%emt 0:00:30]} 38. Ned4 {[%emt 0:00:34]} Ne4 {[%emt 0:00:30]} 39. Nf5+ {[%emt 0:07:30]} Kd7 {[%emt 0:00:17]} 40. Ra8 {[%emt 0:00:00]} Rb1+ {[%emt 0:00:00]} 41. Kh2 {[%emt 0:00:36]} Nf2 {[%emt 0:01:50]} 42. Rxh8 {[%emt 0:03:36]} Rh1+ {[%emt 0:00:21]} 0-1

[Event "Mukachevo IM October 2019"]
[Site "Mukachevo"]
[Date "2019.10.02"]
[Round "3.4"]
[White "Kersten, Uwe"]
[Black "Petrovskiy, Vadim"]
[Result "1-0"]
[ECO "A45"]
[WhiteElo "2239"]
[BlackElo "2197"]
[Annotator "NA"]
[PlyCount "47"]
[EventDate "2019.10.01"]
[EventType "tourn"]
[EventCountry "UKR"]
[SourceTitle "playchess.com"]
[Source "ChessBase"]
[SourceQuality "1"]
[TimeControl "40/5400+30:900+30"]

1. d4 {[%emt 0:00:00]} Nf6 {[%emt 0:00:00]} 2. Bf4 {[%emt 0:00:04]} g6 {[%emt 0:00:00]} 3. Nc3 {[%emt 0:00:27]} d5 {[%emt 0:00:29]} 4. e3 {[%emt 0:00:11]} Bg7 {[%emt 0:00:14]} 5. h4 {[%emt 0:00:30]} Bf5 {[%emt 0:06:46]} 6. Bd3 {[%emt 0:05:05]} Bxd3 {[%emt 0:00:41]} 7. Qxd3 {[%emt 0:01:17]} c6 {[%emt 0:00:46]} 8. O-O-O {[%emt 0:07:57]} Nbd7 {[%emt 0:05:31]} 9. Nf3 {[%emt 0:00:38]} Ng4 {[%emt 0:01:05]} 10. Qe2 {[%emt 0:01:51]} O-O {[%emt 0:06:39]} 11. e4 {[%emt 0:18:29]} dxe4 {[%emt 0:02:41]} 12. Nxe4 {[%emt 0:06:26]} Qa5 {[%emt 0:00:36]} 13. Kb1 {[%emt 0:00:30]} e5 {[%emt 0:01:28]} 14. dxe5 {[%emt 0:06:41]} Ngxe5 {[%emt 0:01:21]} 15. Nd6 {[%emt 0:02:49]} Nxf3 {[%emt 0:03:40]} 16. Qxf3 {[%emt 0:02:18]} Nc5 {[%emt 0:00:20]} 17. Bg5 {[%emt 0:04:49]} Na4 {[%emt 0:25:03]} 18. Bf6 {[%emt 0:01:50]} Qb6 {[%emt 0:01:00]} 19. b3 {[%emt 0:05:58]} Bxf6 {[%emt 0:02:20]} 20. Qxf6 {[%emt 0:00:27]} Qb4 {[%emt 0:00:29]} 21. Rd3 {[%emt 0:10:54]} Rae8 {[%emt 0:13:31]} 22. Nxe8 {[%emt 0:04:13]} Rxe8 {[%emt 0:00:02]} 23. Rhd1 {[%emt 0:01:37]} h5 {[%emt 0:02:07]} 24. Rd8 {[%emt 0:03:58]} 1-0

[Event "Mukachevo IM October 2019"]
[Site "Mukachevo"]
[Date "2019.10.03"]
[Round "4.1"]
[White "Shkuran, Danylo"]
[Black "Rytenko, Vsevolod"]
[Result "0-1"]
[ECO "A08"]
[WhiteElo "2343"]
[BlackElo "2387"]
[Annotator "ChessBase"]
[PlyCount "88"]
[EventDate "2019.10.01"]
[EventType "tourn"]
[EventCountry "UKR"]
[SourceTitle "playchess.com"]
[Source "ChessBase"]
[SourceQuality "1"]
[TimeControl "40/5400+30:900+30"]

1. Nf3 {[%emt 0:01:05]} d5 {[%emt 0:00:00]} 2. g3 {[%emt 0:00:12]} Nf6 {[%emt 0:00:13]} 3. Bg2 {[%emt 0:00:07]} e6 {[%emt 0:00:06]} 4. O-O {[%emt 0:00:08]} Be7 {[%emt 0:00:07]} 5. d3 {[%emt 0:00:40]} O-O {[%emt 0:00:28]} 6. Nbd2 {[%emt 0:00:05]} c5 {[%emt 0:03:27]} 7. e4 {[%emt 0:01:23]} Nc6 {[%emt 0:02:34]} 8. Re1 {[%emt 0:01:31]} b5 {[%emt 0:04:20]} 9. a4 {[%emt 0:02:24]} b4 {[%emt 0:00:13]} 10. exd5 {[%emt 0:00:26]} exd5 {[%emt 0:00:24]} 11. Ne5 {[%emt 0:00:46]} Nxe5 {[%emt 0:04:18]} 12. Rxe5 {[%emt 0:00:54]} Bd6 {[%emt 0:00:08]} 13. Re1 {[%emt 0:01:57]} Be6 {[%emt 0:01:26]} 14. Nf3 {[%emt 0:03:50]} h6 {[%emt 0:02:45]} 15. d4 {[%emt 0:05:18]} c4 {[%emt 0:01:44]} 16. Ne5 {[%emt 0:03:07]} Qc7 {[%emt 0:04:09]} 17. f4 {[%emt 0:05:11]} Rae8 {[%emt 0:04:27]} 18. h3 {[%emt 0:04:30]} Ne4 {[%emt 0:05:29]} 19. Bxe4 {[%emt 0:06:45]} dxe4 {[%emt 0:00:11]} 20. Kh2 {[%emt 0:00:10]} Qc8 {[%emt 0:04:42]} 21. Qh5 {[%emt 0:13:15]} Kh7 {[%emt 0:04:25]} 22. Rxe4 {[%emt 0:12:21]} g6 {[%emt 0:03:19]} 23. Qe2 {[%emt 0:04:19]} f6 {[%emt 0:01:17]} 24. Nf3 {[%emt 0:00:55]} Bxh3 {[%emt 0:00:42]} 25. Rxe8 {[%emt 0:08:01]} Rxe8 {[%emt 0:00:13]} 26. Qf2 {[%emt 0:04:31]} Bg4 {[%emt 0:00:51]} 27. Be3 {[%emt 0:03:10]} Qf5 {[%emt 0:02:24]} 28. Nh4 {[%emt 0:04:34]} Qh5 {[%emt 0:01:12]} 29. Kg1 {[%emt 0:01:15]} Bd7 {[%emt 0:01:09]} 30. Re1 {[%emt 0:07:17]} Bc6 {[%emt 0:01:22]} 31. Ng2 {[%emt 0:04:30]} Qd5 {[%emt 0:00:24]} 32. Bd2 {[%emt 0:00:46]} Rxe1+ {[%emt 0:01:22]} 33. Bxe1 {[%emt 0:00:05]} Bxa4 {[%emt 0:00:32]} 34. c3 {[%emt 0:00:03]} b3 {[%emt 0:01:14]} 35. Ne3 {[%emt 0:00:10]} Qe4 {[%emt 0:00:18]} 36. Ng4 {[%emt 0:01:07]} Be7 {[%emt 0:00:52]} 37. Qe3 {[%emt 0:00:31]} Bc6 {[%emt 0:00:14]} 38. Qxe4 {[%emt 0:00:07]} Bxe4 {[%emt 0:00:03]} 39. Bd2 {[%emt 0:01:11]} a5 {[%emt 0:00:49]} 40. Nf2 {[%emt 0:00:00]} Bc2 {[%emt 0:00:00]} 41. Bc1 {[%emt 0:03:03]} a4 {[%emt 0:02:08]} 42. Kf1 {[%emt 0:00:34]} Bb4 {[%emt 0:01:40]} 43. cxb4 {[%emt 0:00:39]} a3 {[%emt 0:00:07]} 44. bxa3 {[%emt 0:00:04]} c3 {[%emt 0:00:04]} 0-1

[Event "Mukachevo IM October 2019"]
[Site "Mukachevo"]
[Date "2019.10.03"]
[Round "4.2"]
[White "Petrovskiy, Vadim"]
[Black "Vachylia, Andrii"]
[Result "1-0"]
[ECO "B99"]
[WhiteElo "2197"]
[BlackElo "2201"]
[Annotator "NA"]
[PlyCount "61"]
[EventDate "2019.10.01"]
[EventType "tourn"]
[EventCountry "UKR"]
[SourceTitle "playchess.com"]
[Source "ChessBase"]
[SourceQuality "1"]
[TimeControl "40/5400+30:900+30"]

1. e4 {[%emt 0:08:35]} c5 {[%emt 0:00:00]} 2. Nf3 {[%emt 0:00:08]} d6 {[%emt 0:00:00]} 3. d4 {[%emt 0:00:07]} cxd4 {[%emt 0:00:00]} 4. Nxd4 {[%emt 0:00:04]} Nf6 {[%emt 0:00:04]} 5. Nc3 {[%emt 0:00:07]} a6 {[%emt 0:00:29]} 6. Bg5 {[%emt 0:00:37]} e6 {[%emt 0:00:57]} 7. f4 {[%emt 0:00:11]} Be7 {[%emt 0:00:07]} 8. Qf3 {[%emt 0:02:13]} Nbd7 {[%emt 0:00:08]} 9. O-O-O {[%emt 0:01:55]} Qc7 {[%emt 0:00:13]} 10. g4 {[%emt 0:02:21]} b5 {[%emt 0:00:19]} 11. Bxf6 {[%emt 0:00:54]} Nxf6 {[%emt 0:02:53]} 12. g5 {[%emt 0:00:13]} Nd7 {[%emt 0:00:09]} 13. f5 {[%emt 0:02:08]} O-O {[%emt 0:12:46]} 14. Rg1 {[%emt 0:14:40]} b4 {[%emt 0:00:28]} 15. Nce2 {[%emt 0:03:13]} e5 {[%emt 0:00:14]} 16. f6 {[%emt 0:02:43]} exd4 {[%emt 0:00:54]} 17. fxe7 {[%emt 0:00:14]} Re8 {[%emt 0:00:10]} 18. Nxd4 {[%emt 0:00:53]} Ne5 {[%emt 0:00:11]} 19. Qb3 {[%emt 0:04:44]} a5 {[%emt 0:24:38]} 20. Nb5 {[%emt 0:08:06]} Qc5 {[%emt 0:00:11]} 21. Qg3 {[%emt 0:00:41]} Be6 {[%emt 0:01:16]} 22. Nxd6 {[%emt 0:03:04]} Rxe7 {[%emt 0:00:16]} 23. Bh3 {[%emt 0:00:43]} Rc7 {[%emt 0:04:36]} 24. Rg2 {[%emt 0:01:19]} Rd8 {[%emt 0:00:55]} 25. Rdd2 {[%emt 0:11:47]} Rcd7 {[%emt 0:06:27]} 26. Nf5 {[%emt 0:07:11]} Nd3+ {[%emt 0:27:54]} 27. Kb1 {[%emt 0:00:12]} Nf4 {[%emt 0:01:06]} 28. Nh6+ {[%emt 0:16:07]} Kf8 {[%emt 0:01:10]} 29. Rxd7 {[%emt 0:03:35]} Rxd7 {[%emt 0:00:16]} 30. Rg1 {[%emt 0:00:08]} Nxh3 {[%emt 0:02:35]} 31. Qb8+ {[%emt 0:00:11]} 1-0

[Event "Mukachevo IM October 2019"]
[Site "Mukachevo"]
[Date "2019.10.03"]
[Round "4.3"]
[White "Sernecki, Franciszek"]
[Black "Kersten, Uwe"]
[Result "1-0"]
[ECO "A73"]
[WhiteElo "2276"]
[BlackElo "2239"]
[Annotator "NA"]
[PlyCount "75"]
[EventDate "2019.10.01"]
[EventType "tourn"]
[EventCountry "UKR"]
[SourceTitle "playchess.com"]
[Source "ChessBase"]
[SourceQuality "1"]
[TimeControl "40/5400+30:900+30"]

1. d4 {[%emt 0:00:00]} Nf6 {[%emt 0:00:00]} 2. c4 {[%emt 0:00:33]} c5 {[%emt 0:02:21]} 3. d5 {[%emt 0:02:56]} g6 {[%emt 0:01:35]} 4. Nc3 {[%emt 0:05:09]} d6 {[%emt 0:00:03]} 5. e4 {[%emt 0:03:35]} Bg7 {[%emt 0:00:06]} 6. Nf3 {[%emt 0:00:59]} O-O {[%emt 0:00:37]} 7. Be2 {[%emt 0:00:53]} e6 {[%emt 0:01:19]} 8. O-O {[%emt 0:01:00]} exd5 {[%emt 0:01:09]} 9. cxd5 {[%emt 0:00:32]} Bg4 {[%emt 0:15:18]} 10. Nd2 {[%emt 0:25:05]} Bxe2 {[%emt 0:00:16]} 11. Qxe2 {[%emt 0:00:08]} Re8 {[%emt 0:01:13]} 12. Qd3 {[%emt 0:04:35]} Nbd7 {[%emt 0:06:41]} 13. Nc4 {[%emt 0:07:14]} b5 {[%emt 0:17:53]} 14. Nxb5 {[%emt 0:05:54]} Rxe4 {[%emt 0:01:24]} 15. Bg5 {[%emt 0:06:49]} Qb8 {[%emt 0:12:16]} 16. Bxf6 {[%emt 0:09:32]} Nxf6 {[%emt 0:00:19]} 17. Nbxd6 {[%emt 0:02:02]} Rd4 {[%emt 0:04:14]} 18. Qf3 {[%emt 0:01:47]} Qf8 {[%emt 0:15:42]} 19. b3 {[%emt 0:09:34]} Rd8 {[%emt 0:03:26]} 20. Nb5 {[%emt 0:00:37]} R4xd5 {[%emt 0:00:16]} 21. Rad1 {[%emt 0:01:47]} a6 {[%emt 0:02:57]} 22. Nc3 {[%emt 0:04:04]} Rd4 {[%emt 0:01:16]} 23. Rfe1 {[%emt 0:00:45]} h5 {[%emt 0:02:37]} 24. h3 {[%emt 0:02:08]} Rxd1 {[%emt 0:02:04]} 25. Rxd1 {[%emt 0:00:19]} Rd4 {[%emt 0:00:27]} 26. Re1 {[%emt 0:02:18]} Qd8 {[%emt 0:00:25]} 27. Qc6 {[%emt 0:01:38]} Nd7 {[%emt 0:04:21]} 28. Na4 {[%emt 0:01:28]} Qg5 {[%emt 0:01:32]} 29. Nab6 {[%emt 0:00:32]} Nf6 {[%emt 0:01:35]} 30. Nc8 {[%emt 0:00:30]} Nd5 {[%emt 0:00:18]} 31. Qe8+ {[%emt 0:00:25]} Kh7 {[%emt 0:00:01]} 32. Qe2 {[%emt 0:00:40]} Nf4 {[%emt 0:01:09]} 33. Qf3 {[%emt 0:00:12]} Rd3 {[%emt 0:00:11]} 34. Re3 {[%emt 0:00:41]} Rd1+ {[%emt 0:01:18]} 35. Kh2 {[%emt 0:00:00]} Bd4 {[%emt 0:00:16]} 36. Re7 {[%emt 0:00:27]} Rd3 {[%emt 0:00:27]} 37. Rxf7+ {[%emt 0:00:10]} Kg8 {[%emt 0:00:48]} 38. Qxf4 {[%emt 0:00:11]} 1-0